Cogmind - Beta 15 @@@ ROGUE MODE // 2025.10.16 @ 21:20:20 // Winter2019/RPGLIKE Player: ExAliquo Result: Destroyed by G-67 Veteran with Plasma Rifle Performance ------------- Evolutions (5) 2500 Regions Visited (5) 1000 Robots Destroyed (34) 170 Value Destroyed (1558) 1558 Prototype IDs (22) 440 Alien Tech Used (0) 0 Bonus (337) 337 TOTAL SCORE: 6005 Bonus ------- Follower Combat Kills 37 Registered with UFD 300 Cogmind --------- Core Integrity 0/950 Matter 300/300 Energy 80/100 System Corruption 2% Temperature Cool (12) Movement Hovering (80) Location -5/Factory Parts ------- > --- POWER (1+1) ------ (None) > --- PROPULSION (3) --- Combat Airjet Makeshift Flight Unit > --- UTILITY (5+1) ---- Structural Scanner (+) Seismic Detector Improved Melee Analysis Suite Microactuators Mapping Drone Bay (3/3) Rainbow Chip > --- WEAPON (1) ------- Companion Sword > --- INVENTORY (4) ---- Protomatter-73 Advanced Shield Generator CPS Tube (2) DRS Beacon (Ready) Peak State ------------ > --- POWER ------------ Makeshift Power Source > --- PROPULSION ------- Gravmag System Combat Airjet Xenon Bombardment Thruster Makeshift Flight Unit > --- UTILITY ---------- Structural Scanner Seismic Detector Improved Melee Analysis Suite Microactuators Advanced Shield Generator Rainbow Chip > --- WEAPON ----------- Companion Sword > --- INVENTORY -------- Protomatter Mapping Drone Bay CPS Tube DRS Beacon [Rating: 57] Favorites ----------- Power Ion Engine Engine Ion Engine Power Core Light Nuclear Core Propulsion Combat Airjet Treads Light Treads Wheel Wheel Hover Unit Combat Airjet Flight Unit Cesium-ion Thruster Utility Seismic Detector Device Seismic Detector Processor Rainbow Chip Protection Scrap Shield Weapon Makeshift Spear Energy Gun EM Pulse Gun Ballistic Gun Heavy Assault Rifle Ballistic Cannon Slug Cannon Launcher Rocket Launcher Special Weapon Multitool Slashing Weapon Companion Sword Piercing Weapon Makeshift Spear Build | -11 -10 -10 -10 -7 -5 ------- Run | Yrd Mat Min Sub Scr Fac Slots Evolved 6 | 2 2 . 1 . 1 Power . | . . . . . . Propulsion 2 | 1 1 . . . . Utility 4 | 1 1 . 1 . 1 Weapon . | . . . . . . Parts Attached 34 | 3 5 3 7 13 3 Power 4 | . 1 . . 3 . Engine 2 | . 1 . . 1 . Core 2 | . . . . 2 . Reactor . | . . . . . . Propulsion 12 | 3 . 2 . 7 . Treads 1 | 1 . . . . . Leg . | . . . . . . Wheel 4 | 2 . 1 . 1 . Hover 4 | . . 1 . 3 . Flight 3 | . . . . 3 . Utility 10 | . 2 1 2 2 3 Device 7 | . 2 1 . 1 3 Storage . | . . . . . . Processor 2 | . . . 1 1 . Hackware . | . . . . . . Protection 1 | . . . 1 . . Artifact . | . . . . . . Weapon 8 | . 2 . 5 1 . Energy Gun . | . . . . . . Energy Cannon . | . . . . . . Ballistic Gun 2 | . 1 . 1 . . Ballistic Cannon 2 | . 1 . 1 . . Launcher 1 | . . . 1 . . Special Weapon 1 | . . . 1 . . Impact Weapon . | . . . . . . Slashing Weapon 1 | . . . . 1 . Piercing Weapon 1 | . . . 1 . . Special Melee Weapon . | . . . . . . Unidentified Prototypes 1 | . . . . 1 . Parts Lost 3 | . . . . . 3 Power 1 | . . . . . 1 Propulsion 2 | . . . . . 2 Utility . | . . . . . . Weapon . | . . . . . . Highest Loss Streak 2 | . . . . . 2 To Critical Strikes . | . . . . . . Average Backups 2 | . 1 1 2 2 2 Power . | . . . . . . Propulsion . | . . . . . . Utility 1 | . . . 1 2 1 Weapon . | . 1 1 . . . Tool/Special . | . . . . . . Unused Backups 6 | . 3 1 . 1 1 Power . | . . . . . . Propulsion 1 | . 1 . . . . Utility . | . . . . . . Weapon 4 | . 2 1 . 1 . Tool/Special 1 | . . . . . 1 Average Slot Usage (%) 74 | . 88 77 64 74 89 Engine 7 | . 14 12 10 1 7 Core 1 | . . . . 5 . Treads 2 | . 14 8 . . . Wheel 2 | . 14 8 . 1 . Hover 9 | . . 3 10 11 14 Flight 3 | . . . . 6 13 Device 21 | . 28 31 20 16 28 Processor 4 | . . . 1 8 15 Protection 5 | . . . 9 5 . Energy Gun 1 | . 8 . . . . Ballistic Gun 2 | . 3 12 3 . . Launcher 2 | . . . 1 6 . Piercing Weapon 4 | . . . 5 6 . Peak Build Rating 57 | 4 7 15 31 53 57 Average Rating 26 | 3 6 9 18 39 54 On Entrance 18 | 3 4 7 13 31 51 Naked Turns . | . . . . . . Heaviest Build 32 | 7 10 11 32 31 17 Greatest Support 39 | 16 20 20 12 39 26 Greatest Overweight (x) 2 | 2 . 1 2 2 1 Average Overweight (x) . | . . . 1 . . Largest Inventory Capacity 4 | 2 2 2 4 4 4 Average Capacity 3 | . 2 2 3 4 4 Most Carried 4 | 2 2 2 4 4 4 Average Carried 3 | . 1 2 3 3 4 Final Capacity 4 | 2 2 2 4 4 4 Final Carried 4 | 2 2 2 3 4 4 Class Distribution -------------------- 87% | Mutant 12% | Derelict-Mutant Dominant Class ---------------- Mutant | -10/Materials Mutant | -10/Mines Mutant | -10/Subcaves Mutant | -7/Scraptown Derelict-Mutant | -5/Factory Resources | -11 -10 -10 -10 -7 -5 ----------- Run | Yrd Mat Min Sub Scr Fac Matter Collected 962 | 200 170 144 278 110 60 Remotely . | . . . . . . Salvage Created 994 | . 243 27 21 . 703 Parts 78 | . 20 4 12 . 42 Haulers Intercepted 1 | . . . . . 1 Recyclers Shooed . | . . . . . . Parts Field Recycled . | . . . . . . Retrieved Matter . | . . . . . . Parts Self-Destructed 19 | . . . 19 . . Prevented . | . . . . . . Kills | -11 -10 -10 -10 -7 -5 ------- Run | Yrd Mat Min Sub Scr Fac Combat Hostiles Destroyed 28 | . 9 2 4 . 13 Melee 11 | . . . 2 . 9 Guns 12 | . 8 2 2 . . Cannons 1 | . 1 . . . . AOE 4 | . . . . . 4 Classes Destroyed 15 | . 4 3 1 . 7 Worker 2 | . . . . . 2 Tunneler 1 | . . 1 . . . Hauler 1 | . . . . . 1 Operator 2 | . 1 . . . 1 Watcher 1 | . 1 . . . . Swarmer 5 | . 3 . 2 . . Grunt 10 | . 6 . . . 4 Brawler 1 | . . . . . 1 Duelist 1 | . . . . . 1 Sentry 4 | . . . . . 4 Demolisher 1 | . . 1 . . . Hunter 2 | . . . . . 2 Programmer 1 | . . . . . 1 Subdweller 2 | . . . 2 . . Assembled 1 | . . 1 . . . Best Kill Streak 7 | . 3 2 2 . 7 Combat Bots Only 4 | . 2 1 2 . 4 Max Kills in Single Turn 6 | . 1 1 1 . 6 Gunslinging . | . . . . . . Exploded 3 | . . . . . 3 Melee 1 | . . . 1 . 1 Uniques/NPCs Destroyed . | . . . . . . Combat | -11 -10 -10 -10 -7 -5 -------- Run | Yrd Mat Min Sub Scr Fac Hostile Shots Fired 134 | . 33 2 37 . 62 Missed 41 | . 14 . 10 . 17 Hits 93 | . 19 2 27 . 45 Melee 2 | . . . . . 2 Projectile 91 | . 19 2 27 . 43 AOE 7 | . . 2 4 . 1 Critical Strikes 3 | . . . 1 . 2 Damage Taken 2570 | . 239 71 743 . 1517 Core 1972 | . 204 59 451 . 1258 Absorbed by Shields . | . . . . . . Redirected to Core 1504 | . 118 44 358 . 984 Core Remaining (%) 100 | 100 . . . 100 . Volleys Fired 126 | . 62 31 33 . . Largest 1 | . 1 1 1 . . Hottest 40 | . 40 23 40 . . Shots Fired 126 | . 62 31 33 . . Gun 109 | . 55 31 23 . . Cannon 17 | . 7 . 10 . . Launcher . | . . . . . . Special . | . . . . . . Kinetic 89 | . 25 31 33 . . Thermal . | . . . . . . Explosive . | . . . . . . Electromagnetic 37 | . 37 . . . . Robot Hit Streak 15 | . 15 3 4 . . Robot Miss Streak 5 | . 5 4 3 . . Penetration Max . | . . . . . . Secondary Targets . | . . . . . . Shots Hit Robots 98 | . 34 5 12 . 47 Core Hits 52 | . 15 4 5 . 28 Critical Kills . | . . . . . . Critical Parts Destroyed . | . . . . . . Critical Strikes 2 | . . . . . 2 Melee Attacks 88 | . . . 28 . 60 Impact . | . . . . . . Slashing 60 | . . . . . 60 Piercing 28 | . . . 28 . . Sneak Attacks 1 | . . . . . 1 Combat Hostiles 1 | . . . . . 1 Follow-up Attacks . | . . . . . . Damage Inflicted 3611 | . 528 81 217 . 2785 Guns 593 | . 436 81 76 . . Cannons 49 | . 49 . . . . Explosions 826 | . 43 . . . 783 Melee 2143 | . . . 141 . 2002 Ramming . | . . . . . . Kinetic 299 | . 142 81 76 . . Thermal 43 | . 43 . . . . Explosive 783 | . . . . . 783 Electromagnetic 343 | . 343 . . . . Impact . | . . . . . . Slashing 2002 | . . . . . 2002 Piercing 141 | . . . 141 . . Highest Corruption 2 | . . . . . 2 Average Corruption 1 | . . . . . 1 Corruption Purged . | . . . . . . Corruption Blocked . | . . . . . . Overload Shots . | . . . . . . Overflow Damage 89 | . . . . . 89 Projectiles . | . . . . . . Explosions 43 | . . . . . 43 Melee 46 | . . . . . 46 Knockbacks 1 | . 1 . . . . Impact . | . . . . . . Kinetic 1 | . 1 . . . . Secondary . | . . . . . . Self-Inflicted Damage 358 | . 39 . . . 319 Shots 5 | . 1 . . . 4 Rammed . | . . . . . . Targets Rammed . | . . . . . . Kicked . | . . . . . . Crushed . | . . . . . . Highest Temperature 56 | . 56 . . . 23 Average Temperature 23 | . 24 . . . 9 Received Heat Transfer 435 | . 84 . 144 . 207 Siege Activations . | . . . . . . Martial Activations . | . . . . . . Shielding Activations . | . . . . . . Robots Disrupted . | . . . . . . Combat Hostiles . | . . . . . . Robots Corrupted . | . . . . . . Combat Hostiles . | . . . . . . Parts Fried . | . . . . . . Impact Corruptions . | . . . . . . Robots Melted . | . . . . . . Combat Hostiles . | . . . . . . Parts Melted . | . . . . . . Heat Transferred 50 | . 50 . . . . Parts Sabotaged . | . . . . . . Parts Stolen . | . . . . . . Parts Stripped . | . . . . . . Power Chain Reactions 1 | . 1 . . . . Alert | -11 -10 -10 -10 -7 -5 ------- Run | Yrd Mat Min Sub Scr Fac Maximum Alert Level 2 | . . . . . 2 Low Security (%) 97 | 100 100 100 . . 90 Level 1 2 | . . . . . 8 Level 2 . | . . . . . 1 Level 3 . | . . . . . . Level 4 . | . . . . . . Level 5 . | . . . . . . High Security . | . . . . . . Max Security . | . . . . . . Peak Influence 412 | . 167 150 . . 412 Initial 43 | . . 43 . . . Average 92 | . 93 57 . . 125 Influence Increases 1408 | . 442 207 81 . 678 Destroy 0b10 Robot/C 520 | . 180 20 60 . 260 Destroy 0b10 Robot/NC 35 | . 10 5 . . 20 Destroy Leader 144 | . 52 10 10 . 72 Allied During Kill 11 | . . . 11 . . Successful Hack 29 | . 29 . . . . Select Force Hacks 90 | . 60 . . . 30 Disable Machine 450 | . 90 165 . . 195 Destroy Structure 69 | . 6 7 . . 56 Partial Spotted 15 | . . . . . 15 Lose Combat Pursuer 45 | . 15 . . . 30 Influence Decreases 1004 | . 331 228 171 . 274 Entered New Map 115 | . . 68 47 . . Time Decay 845 | . 331 160 110 . 244 Lost Part 30 | . . . . . 30 Lost Ally 14 | . . . 14 . . Squads Dispatched 10 | . 4 . . . 6 Investigation 4 | . 3 . . . 1 Extermination . | . . . . . . Reinforcement 4 | . 1 . . . 3 Assault . | . . . . . . Garrison 2 | . . . . . 2 Intercept . | . . . . . . Searches Triggered . | . . . . . . Construction Impeded . | . . . . . . Haulers Reinforced . | . . . . . . Active Scanning Responses . | . . . . . . Cargo Convoy Interrupts . | . . . . . . Stealth | -11 -10 -10 -10 -7 -5 --------- Run | Yrd Mat Min Sub Scr Fac Distress Signals 2 | . 1 . . . 1 Communications Jammed . | . . . . . . Distress Signals . | . . . . . . Times Spotted 63 | . 18 4 22 . 19 Peak Tracking Total 6 | . 5 1 5 . 6 Tactical Retreats 6 | . 1 2 1 . 2 Traps | -11 -10 -10 -10 -7 -5 ------- Run | Yrd Mat Min Sub Scr Fac Traps Triggered 4 | . 3 . 1 . . Indirectly . | . . . . . . Trap Hack Attempts . | . . . . . . Triggered . | . . . . . . Disarmed . | . . . . . . Reprogrammed . | . . . . . . Reused . | . . . . . . Traps Extracted . | . . . . . . Installed 1 | . . . 1 . . Triggered . | . . . . . . Machines | -11 -10 -10 -10 -7 -5 ---------- Run | Yrd Mat Min Sub Scr Fac Machines Disabled 32 | . 7 11 1 . 13 Max in Single Turn 4 | . 1 1 1 . 4 Garrison Access 1 | . . . . . 1 Machines Repaired . | . . . . . . Machines Dismantled . | . . . . . . Machines Sabotaged . | . . . . . . Overloaded Fab Kills . | . . . . . . Hacking | -11 -10 -10 -10 -7 -5 --------- Run | Yrd Mat Min Sub Scr Fac Machines Accessed 19 | . 9 . 1 7 2 Terminals 7 | . 7 . . . . Fabricators . | . . . . . . Repair Stations . | . . . . . . Recycling Units 2 | . 2 . . . . Scanalyzers 1 | . . . . . 1 Garrison Access 1 | . . . . . 1 Total Hacks 89 | . 27 . 9 50 3 Successful 76 | . 15 . 9 50 2 Failed 13 | . 12 . . . 1 Catastrophic 2 | . 2 . . . . Database Lockouts . | . . . . . . Manual 20 | . 19 . . . 1 Terminals 25 | . 25 . . . . Fabricators . | . . . . . . Repair Stations . | . . . . . . Recycling Units 2 | . 2 . . . . Scanalyzers 1 | . . . . . 1 Garrison Access 2 | . . . . . 2 Terminal Hacks 69 | . 10 . 9 50 . Record 51 | . . . 8 43 . Robot Analysis 5 | . . . . 5 . Prototype ID Bank 1 | . 1 . . . . Open Door 1 | . . . . 1 . Branch Access Points 1 | . 1 . . . . Terminal Index 1 | . 1 . . . . Locate Traps 2 | . 2 . . . . Recall Investigation 1 | . 1 . . . . Hauler Manifests 1 | . 1 . . . . Registered Components 1 | . 1 . . . . Registered Prototypes 1 | . 1 . . . . Zone Layout 1 | . 1 . . . . Proto ID Catalog 2 | . . . 1 1 . Fabricator Hacks . | . . . . . . Repair Station Hacks . | . . . . . . Recycling Unit Hacks . | . . . . . . Scanalyzer . | . . . . . . Garrison Access Hacks 1 | . . . . . 1 Seal Access 1 | . . . . . 1 Unauthorized Hacks 6 | . 5 . . . 1 Terminals 3 | . 3 . . . . Botnet 3 | . 3 . . . . Fabricators . | . . . . . . Repair Stations . | . . . . . . Recycling Units 2 | . 2 . . . . Tunnel 2 | . 2 . . . . Scanalyzers 1 | . . . . . 1 Extract 1 | . . . . . 1 Garrison Access . | . . . . . . Data Cores Recovered 1 | . . . . . 1 Used . | . . . . . . Hacking Detections 7 | . 7 . . . . Full Trace Events 1 | . 1 . . . . Feedback Events . | . . . . . . Feedback Blocked . | . . . . . . Robot Schematics Acquired . | . . . . . . Robots Built . | . . . . . . Authchips . | . . . . . . Time . | . . . . . . Total Robot Build Rating . | . . . . . . Part Schematics Acquired 11 | . . . . . 11 Parts Built . | . . . . . . Authchips . | . . . . . . Time . | . . . . . . Total Part Build Rating . | . . . . . . Parts Repaired . | . . . . . . Time . | . . . . . . Parts Recycled . | . . . . . . Recycled Matter . | . . . . . . Retrieved Matter . | . . . . . . Retrieved Components . | . . . . . . Parts Scanalyzed . | . . . . . . Part Schematics Acquired . | . . . . . . Parts Damaged . | . . . . . . Bothacking | -11 -10 -10 -10 -7 -5 ------------ Run | Yrd Mat Min Sub Scr Fac Used RIF Installer . | . . . . . . Robots Hacked . | . . . . . . Non-combat . | . . . . . . Combat . | . . . . . . Robot Hacks Applied . | . . . . . . Relay Couplers Released 1 | . . . . . 1 Programmers 1 | . . . . . 1 Fabnet Peak Effective % . | . . . . . . Robots Rewired . | . . . . . . Allies Hacked . | . . . . . . Hacks Repelled . | . . . . . . Allies | -11 -10 -10 -10 -7 -5 -------- Run | Yrd Mat Min Sub Scr Fac Total Allies 3 | . . 3 . . . Largest Group 3 | . . 3 3 . . Highest-Rated Group 40 | . . 40 40 . . Highest-Rated Ally 16 | . . 16 16 . . Total Orders 2 | . . . . . 2 EXPLORE 1 | . . . . . 1 RETURN 1 | . . . . . 1 Ally Attacks 46 | . . . 46 . . Total Damage 412 | . . . 412 . . Kills 2 | . . . 2 . . Allies Corrupted . | . . . . . . Allies Melted 1 | . . 1 . . . Intel | -11 -10 -10 -10 -7 -5 ------- Run | Yrd Mat Min Sub Scr Fac Active Infowar (turns) 6550 | . 831 465 2375 2339 540 Terrain 771 | . . 251 301 219 . Structural 6187 | . 828 465 2015 2339 540 Seismic 6436 | . 827 465 2265 2339 540 Robot Analysis Total 5 | . . . . 5 . Derelict Logs Recovered 3 | . . 1 2 . . Drone Launches 1 | . . . . . 1 Drone Recoveries 1 | . . . . . 1 Exploration | -11 -10 -10 -10 -7 -5 ------------- Run | Yrd Mat Min Sub Scr Fac Turns Passed 6589 | 20 850 465 2375 2339 540 Spaces Moved 4914 | 10 678 349 1098 2078 701 Core 4 | 4 . . . . . Treads 189 | . 64 125 . . . Legs . | . . . . . . Wheels 977 | 6 614 66 . 291 . Hover 2546 | . . 158 1098 1198 92 Flight 1198 | . . . . 589 609 Fastest Speed 44 | 80 80 80 80 44 44 Average Speed 117 | 110 87 110 196 110 50 Slowest Speed 220 | 150 160 160 220 220 145 Overloaded Moves . | . . . . . . Propulsion Burnouts . | . . . . . . Robots Hopped 4 | . . . . . 4 Potential Cave-ins . | . . . . . . Cave-ins Triggered . | . . . . . . Exploration Rate (%) 58 | 2 78 97 56 95 20 Regions Visited 5 Branch Regions 3 Pre-discovered Areas 9 | . 2 1 2 4 . Known Exits Taken 1 | . 1 . . . . Unknown Exits Taken 4 | 1 . 1 1 1 . Scrap Searched 18 | . . 1 10 7 . Spaces Dug 7 | . . . 4 . 3 Terrain Destroyed 46 | . 5 8 7 . 26 Melee 4 | . . . 1 . 3 Projectile 6 | . . . 6 . . AOE 36 | . 5 8 . . 23 Terrain Rammed . | . . . . . . Walls Destroyed . | . . . . . . Machines Disabled . | . . . . . . Actions | -11 -10 -10 -10 -7 -5 --------- Run | Yrd Mat Min Sub Scr Fac Total 5489 | 18 871 398 1259 2118 825 Wait 194 | 2 101 9 30 9 43 Move 4902 | 9 677 348 1097 2077 694 Hop 3 | . . . . . 3 Pick Up 21 | 2 3 1 7 7 1 Fast Attach 28 | 3 10 3 2 9 1 Attach 8 | . . . 3 5 . Detach 1 | . . . 1 . . Swap 9 | . . . 7 . 2 Drop 31 | 2 5 4 7 11 2 Fire 126 | . 62 31 33 . . Melee 88 | . . . 28 . 60 Ram . | . . . . . . Kick . | . . . . . . Crush . | . . . . . . Escape Stasis . | . . . . . . Rewire . | . . . . . . Trap 1 | . . . 1 . . Miscellaneous 77 | . 13 2 43 . 19 Route ------- -11/Scrapyard -10/Materials (discovered 3 exits: [*Mat x2] / *Min) -10/Mines (discovered 3 exits: [*Mat x2] / *Sub) -10/Subcaves (discovered 2 exits: [*Mat] / *Scr) -7/Scraptown (discovered 2 exits: *Fac x2) -5/Factory (discovered 2 exits: Fac / Upp) History --------- Turn | Location | Event 1 | -11/Scrapyard | Upgraded with Propulsion slot (x1) 1 | -11/Scrapyard | Upgraded with Utility slot (x1) 4 | -11/Scrapyard | Discovered new exit (range 1) 21 | -11/Scrapyard | Entered Materials 300 | -10/Materials | Build established: Mutant 351 | -10/Materials | Discovered new exit (range 11) 452 | -10/Materials | Identified exit to Mines 507 | -10/Materials | Reached level 2 516 | -10/Materials | Upgraded with Propulsion slot (x1) 516 | -10/Materials | Upgraded with Utility slot (x1) 702 | -10/Materials | Discovered new exit (range 13) 771 | -10/Materials | Discovered new exit (range 5) 871 | -10/Materials | Entered Mines 878 | -10/Mines | Received a Rocket Launcher from a helpful Derelict 953 | -10/Mines | Learned location of Zion (-7) 1025 | -10/Mines | Discovered new exit (range 10) 1058 | -10/Mines | Assembled infested the area 1063 | -10/Mines | Assisted by a Guerilla fighting off Assembled 1133 | -10/Mines | Reached level 3 1202 | -10/Mines | Discovered new exit (range 8) 1215 | -10/Mines | Assisted by bots powering up and referring to "LRC-V3" 1315 | -10/Mines | Discovered new exit (range 12) 1336 | -10/Mines | Entered Subcaves 1336 | -10/Subcaves | Accompanied by 3 allies 1337 | -10/Subcaves | Approached by a straggling Scientist 1368 | -10/Subcaves | Reached level 4 1520 | -10/Subcaves | Upgraded with Utility slot (x1) 1567 | -10/Subcaves | Ambushed by swarm of Subdwellers 1568 | -10/Subcaves | Scientist uncovered a shortcut to Scraptown 1687 | -10/Subcaves | A swath of the cavern ceiling suddenly collapsed 1725 | -10/Subcaves | Shifting Twisted Machinery released Mak. Light Armor Plating 1731 | -10/Subcaves | Shifting Twisted Machinery released Barrage Gun 2594 | -10/Subcaves | A swath of the cavern ceiling suddenly collapsed 2733 | -10/Subcaves | Lost 3 allies 2822 | -10/Subcaves | Shifting Twisted Machinery released Shrapnel Trap 2896 | -10/Subcaves | Shifting Twisted Machinery released Flamer 3143 | -10/Subcaves | Met a Zionite searching for "candidates" 3216 | -10/Subcaves | Learned Materials emergency access door positions 3272 | -10/Subcaves | Visited 4L-MR0's lab 3298 | -10/Subcaves | Found Rainbow Chip 3299 | -10/Subcaves | Attached Rainbow Chip, gained temporary slots: Power, Propulsion, Utility, Weapon 3513 | -10/Subcaves | Discovered new exit (range 5) 3711 | -10/Subcaves | Entered Scraptown 4313 | -7/Scraptown | Discovered new exit (range 5) 4580 | -7/Scraptown | Heard Great Nut preacher, LISTEN AND RECITE! 4604 | -7/Scraptown | Visited Awakened 4661 | -7/Scraptown | Visited IN-MT5's Study 4769 | -7/Scraptown | Visited Symbiants 4820 | -7/Scraptown | Visited TADAMA 5211 | -7/Scraptown | Visited Fellowship of the Rings 5237 | -7/Scraptown | Visited Spacefarers 5311 | -7/Scraptown | Visited Cave Peace 5385 | -7/Scraptown | Visited UFD Registry 5385 | -7/Scraptown | Registered with UFD as "Toolpod" 5443 | -7/Scraptown | Visited Supply Room 5477 | -7/Scraptown | Visited Curators Association 5498 | -7/Scraptown | Visited Science Guys 5535 | -7/Scraptown | Delivered Scrap Shield to a Scientist 5621 | -7/Scraptown | Visited Sword Containment 5628 | -7/Scraptown | Visited Analyses Database 5639 | -7/Scraptown | Visited Observation Area 5661 | -7/Scraptown | Visited Scrapoid Research Area 5685 | -7/Scraptown | Discovered new exit (range 3) 5741 | -7/Scraptown | Visited DA-N13 Charitable Foundation 5745 | -7/Scraptown | Found DCF Scrap (29 items) 5770 | -7/Scraptown | Visited Derelict Rescue Squad 5782 | -7/Scraptown | Found DRS Beacon 5793 | -7/Scraptown | Visited Cartography Club 5833 | -7/Scraptown | Learned location of Cetus (-5) 5833 | -7/Scraptown | Learned location of Testing (-2) 5833 | -7/Scraptown | Learned 8 Factory zone layouts 5833 | -7/Scraptown | Learned 24 Factory zone layouts 5833 | -7/Scraptown | Learned 16 Research zone layouts 5833 | -7/Scraptown | Learned 8 Lower Caves zone layouts 5833 | -7/Scraptown | Learned 12 Lower Caves zone layouts 5833 | -7/Scraptown | Learned 16 Upper Caves zone layouts 5833 | -7/Scraptown | Learned 24 Upper Caves zone layouts 5833 | -7/Scraptown | Learned 8 Proximity Caves zone layouts 5833 | -7/Scraptown | Learned 12 Proximity Caves zone layouts 5833 | -7/Scraptown | Learned Materials emergency access door positions 5833 | -7/Scraptown | Learned location of 2 exits from Lower Caves 5833 | -7/Scraptown | Learned location of 1 exit from Upper Caves 5833 | -7/Scraptown | Learned location of 1 exit from Proximity Caves 6050 | -7/Scraptown | Entered Factory 6051 | -5/Factory | Identified exit to Upper Caves 6052 | -5/Factory | Identified exit to Factory 6052 | -5/Factory | Reached level 5 6063 | -5/Factory | Build established: Derelict-Mutant 6100 | -5/Factory | Garrison activated, responded to threat 6170 | -5/Factory | Reached level 6 6173 | -5/Factory | Upgraded with Utility slot (x1) 6453 | -5/Factory | Spotted B-75 Beast 6533 | -5/Factory | Core integrity fell below 50% 6578 | -5/Factory | Reached level 7 6581 | -5/Factory | Core integrity fell below 20% 6590 | -5/Factory | Destroyed by G-67 Veteran with Plasma Rifle Last Messages --------------- 06578_ G-50 Soldier destroyed. 06578_ Destroyed Adv. Heat Sink. 06578_ A-15 Conveyor destroyed. 06578_ K-01 Serf destroyed. 06578_ Nuclear Reactor explodes. 06578_ K-01 Serf destroyed. 06580_ Temporary Propulsion slot lost. 06580_ U-05 Engineer lays Concrete. 06584_ Nuclear Reactor explodes. 06584_ Mak. Power Source destroyed. 06584_ Destroyed Mak. Power Source. 06584_ G-50 Soldier destroyed. 06584_ U-05 Engineer lays Concrete. 06585_ U-05 Engineer builds a Wall. 06586_ U-05 Engineer lays Concrete. 06587_ K-01 Serf collects debris. 06588_ U-05 Engineer lays Concrete. 06589_ U-05 Engineer builds a Wall. 06589_ U-05 Engineer lays Concrete. 06590_ The unstable cave ceiling collapses. Map ----- +----------------------------------------------------+ | ?????????????????? ## """ """ #??????????? | | ??????????????????######## """ """ #??????????? | | ??????????????????######## """ """ #####??????? | | ?????????????????? # ??????? | | ?????????????????? # """ "" #####??????? | | ?????????????????? # """ "F"" ## ??????? | | ?????????????????? # """ """" ## ??????? | | """#????# """ """ # ## ## | | #????# """ """ + + ## | | #????# """ """ # ######### ## | | ### #????# # #???????# ## | | ### #????# """ """ # ######### ## | | # #????# """ """ # ######### #### | | # #????# """ """ # ## # | | # #????# # ## # | | " # ################### ## # | | " # # "T" #???????# ## # | | " # # #?####### ## # | | + # #?#########/#### ## # | | " # # #?## u # #####+### | | " # #####+#####?## # | | " # #?# #?## # | | # ######## #?# #### """ # """ *** | | ###+######## #?# + "T" """ # """ *** | | # #?###### """ """ # """ ** | | " " " " " # ######## g@ *= =!u ##### | | " " " " " # ########### !u!* ##??? | | " " " " " # [%=!! ^ ##### | | " " " " " # % A ##### | | " " " " " + """ """ | | " " " " " # ""F"" """ ##### | | " " " " " # "" "" """ u ##### | | " " " " " # tk #####+##### | | " " " " " # """ """ | | # """ """ """ """ "" | | # """ """ """ """ "" | | ######+##### """ """ "" | | ?????# ##### | | ?????# # """ """ | | ?##### #+####+## ### # """ """ " | | ##T ## # ##### # """ """ " | | + ##### # | | ##### ####### ##?## ############ | | #???# #?????# #??## ############ | | ##+###?# #?????# #??## # | | #?# #?????# #??## # | | #?# ####### #??## # | | #?# + #??## # | | #?######### ##### # | | #?????????# ##### # | +----------------------------------------------------+ Best States ------------- Heat Dissipation 25 Energy Generation 15 Energy Capacity 250 Matter Stores 300 Matter Capacity 300 Sight Range 18 Terrain Scan Range 16 Terrain Scan Density 10 Armor Coverage 800 Melee Speed Boost 20 Evasion (%) 61 Melee Accuracy 6 Recoil Reduction 1 Offensive Hacking 10 Item Schematics ----------------- Wave Gun | -5/Factory | Extracted Energy Filter | -5/Factory | Extracted Adv. EM Disruption Field | -5/Factory | Extracted Magnetic Acceleration Cannon | -5/Factory | Extracted EM Disruption Field | -5/Factory | Extracted Seismic Detector | -5/Factory | Extracted Thunder Leg | -5/Factory | Extracted Axe | -5/Factory | Extracted Hvy. Plasma Cannon | -5/Factory | Extracted Imp. Weapon Shielding | -5/Factory | Extracted Gyrokinetic Inverter | -5/Factory | Extracted Robot Schematics ------------------ None Fabricated ------------ Nothing Repaired ---------- Nothing Alien Tech Used ----------------- None Achievements -------------- None Challenges ------------ None RPGLIKE | -11 -10 -10 -10 -7 -5 --------- Run | Yrd Mat Min Sub Scr Fac Levels Raised 6 | . 1 1 1 . 3 XP Earned 12728 | 3000 1960 1475 1368 650 4275 XP Spent 10485 | 1750 2200 400 2910 100 3125 Upgrades 26 | 4 4 2 5 1 10 Propulsion Slot 2 | 1 1 . . . . Utility Slot 4 | 1 1 . 1 . 1 Core Integrity 7 | . . . 2 . 5 Mass Support 1 | . . . . 1 . Inventory Capacity 4 | 2 . . 2 . . Sight Range 2 | . . 2 . . . Melee Accuracy 4 | . . . . . 4 Hack Attack % 2 | . 2 . . . . Protomatter Created 561 | . 175 . 117 . 269 Integrity Restored 1347 | . 196 27 777 . 347 Core 1009 | . 166 27 521 . 295 Parts 338 | . 30 . 256 . 52 Protomatter Decayed 509 | . 71 25 321 . 92 Game ------ Seed NeutrinoPoweredMinigun Manual? 0 Play Time 01:38:24 Cumulative 43.3 hours Start 2025.10.16 @ 19:32:26 End 2025.10.16 @ 21:20:20 Sessions 2 Manual Loads 0 Difficulty Rogue Special Mode Winter2019/RPGLIKE Game No. 86 Rogue 86 Adventurer 0 Explorer 0 Win Type - Total 0 Types 0/0/0/0/0/0/0/0/0/0 Lore% 39 Gallery% 45 Achievement% 58 Wizard Run 0 Options --------- Layout 0 ASCII 0 Keyboard 0 Movement Numpad Keybinds 0 Fullscreen 1 Font 18/SmallcapsGlow Map View 76x50 Zoom Use 0% Tactical HUD 1 Map Filters NONE Filters NONE Steam 1 RUN: 702da85f-041c-48e4-984a-3e70a07dfd82